bitfinex/quotes_SOLUSD_20250806
["timestamp","ask_amount","ask_price","bid_price","bid_amount"]
[1754487197567,44.36,164.39,164.35,27.59948007]
[1754487197946,44.36,164.39,164.35,28.27948007]
[1754487198149,44.36,164.39,164.36,12.4932645]
[1754487198856,44.36,164.39,164.37,6.08383524]
[1754487199272,0.68,164.38,164.31,59.77447461]
[1754487199457,12.4932645,164.36,164.32,21.19190203]
[1754487199658,13.1732645,164.36,164.32,21.19190203]
[1754487199846,12.4932645,164.35,164.32,21.19190203]
[1754487200248,13.1732645,164.35,164.32,6.08568646]
[1754487200767,12.4932645,164.33,164.31,0.2]
[1754487200968,12.4932645,164.32,164.31,0.2]
[1754487201168,13.1732645,164.32,164.31,0.2]
[1754487201369,12.4932645,164.32,164.31,0.2]
[1754487201751,13.1732645,164.32,164.31,0.2]
[1754487202257,56.8132645,164.33,164.31,0.2]
[1754487202457,0.68,164.32,164.31,0.2]
[1754487202757,12.4932645,164.32,164.31,6.28605684]
[1754487203101,44.32,164.33,164.31,0.2]
[1754487203253,12.4932645,164.32,164.31,6.28605684]
[1754487203448,56.8132645,164.33,164.31,6.28605684]
[1754487203675,12.4932645,164.32,164.31,0.2]
[1754487203849,12.4932645,164.32,164.31,6.28605684]
[1754487204062,56.8132645,164.33,164.31,6.28605684]
[1754487204375,12.4932645,164.32,164.31,0.2]
[1754487204680,13.1732645,164.32,164.31,0.2]
[1754487205771,0.68,164.32,164.31,0.2]
[1754487206068,13.1732645,164.32,164.31,0.2]
[1754487206779,12.4932645,164.32,164.31,0.2]
[1754487207481,44.32,164.33,164.31,6.96605684]
[1754487207681,6.08223485,164.42,164.32,13.1732645]
[1754487207881,0.68,164.4,164.32,0.68]
[1754487208056,12.4932645,164.36,164.31,6.28605684]
[1754487208262,26.0,164.39,164.31,6.28605684]
[1754487208263,12.4932645,164.34,164.31,6.28605684]
[1754487208575,12.4932645,164.34,164.31,0.2]
[1754487209079,12.4932645,164.33,164.31,0.2]
[1754487209253,56.8732645,164.32,164.31,0.2]
[1754487209654,44.38,164.32,164.31,0.2]
[1754487209876,56.8732645,164.32,164.31,0.2]
[1754487210173,44.38,164.32,164.31,6.28605684]
[1754487210376,26.0,164.39,164.31,6.28605684]
[1754487210377,56.8532645,164.34,164.31,6.28605684]
[1754487210683,56.8532645,164.34,164.31,0.2]
[1754487210684,12.4932645,164.32,164.31,0.2]
[1754487211182,13.1732645,164.32,164.31,0.2]
[1754487212580,44.36,164.34,164.31,0.2]
[1754487212882,12.4932645,164.34,164.31,0.2]
[1754487213103,44.36,164.33,164.31,6.28605684]
[1754487213457,56.8532645,164.33,164.31,6.28605684]
[1754487213658,57.5432645,164.33,164.31,0.2]
[1754487213872,56.8532645,164.33,164.31,6.28588076]
[1754487214067,44.36,164.33,164.31,6.98588076]
[1754487214282,44.36,164.33,164.31,6.28588076]
[1754487214497,44.36,164.33,164.31,0.2]
[1754487214698,57.5432645,164.33,164.31,0.2]
[1754487214878,0.69,164.36,164.31,6.28605684]
[1754487215080,44.34,164.35,164.31,6.28605684]
[1754487215279,12.4932645,164.34,164.31,6.98605684]
[1754487215587,12.4932645,164.33,164.31,0.2]
[1754487215785,56.8132645,164.32,164.31,0.2]
[1754487216385,57.5032645,164.32,164.31,0.2]
[1754487217491,63.58895096,164.32,164.31,0.2]
[1754487217688,57.5032645,164.32,164.31,0.2]
[1754487218091,63.58895096,164.32,164.31,0.2]
[1754487220998,66.02894296,164.32,164.31,0.2]
[1754487221786,14.9332565,164.32,164.31,0.2]
[1754487221991,56.8332645,164.32,164.31,0.2]
[1754487222318,59.9629585,164.32,164.31,0.2]
[1754487222700,66.04864496,164.32,164.31,0.2]
[1754487223203,59.9629585,164.32,164.31,0.2]
[1754487223404,66.04864496,164.32,164.31,0.2]
[1754487224517,46.779694,164.32,164.31,0.2]
[1754487224687,46.779694,164.32,164.31,14.59548936]
[1754487224688,2.439694,164.32,164.31,14.59548936]
[1754487224885,2.439694,164.32,164.31,15.29548936]
[1754487225086,44.36,164.34,164.31,15.29548936]
[1754487225290,44.36,164.34,164.33,6.08531613]
[1754487225485,44.36,164.34,164.33,6.78531613]
[1754487225719,44.36,164.34,164.33,0.7]
[1754487225912,44.36,164.34,164.31,0.9]
[1754487227390,44.36,164.34,164.31,0.2]
[1754487227588,45.05,164.34,164.31,0.2]
[1754487227799,8.30943252,164.33,164.31,0.2]
[1754487227986,44.32,164.32,164.31,0.2]
[1754487228912,52.62943252,164.32,164.31,0.2]
[1754487229920,53.31943252,164.32,164.31,0.2]
[1754487230109,34.30943252,164.3,164.29,0.06]
[1754487230292,82.67058537,164.3,164.29,0.06]
[1754487230491,89.51070666,164.3,164.29,0.06]
[1754487231311,83.36058537,164.3,164.29,0.06]
[1754487232215,99.39969813,164.3,164.27,0.06]
[1754487232410,26.0,164.26,164.25,0.06]
[1754487232722,26.0,164.22,164.21,0.2]
[1754487232927,95.42885096,164.22,164.21,0.2]
[1754487233230,83.55442548,164.22,164.21,0.2]
[1754487233803,38.56442548,164.22,164.21,0.2]
[1754487234126,70.99,164.22,164.21,0.2]
[1754487234305,83.55442548,164.22,164.21,0.2]
[1754487235128,82.86442548,164.22,164.21,0.2]
[1754487235316,85.30560748,164.22,164.21,0.2]
[1754487235517,82.86442548,164.22,164.21,0.2]
[1754487235819,2.440736,164.25,164.21,13.46442548]
[1754487236021,44.34,164.24,164.22,0.7]
[1754487236233,56.90442548,164.24,164.21,0.2]
[1754487236419,56.90442548,164.24,164.21,0.9]
[1754487236613,44.34,164.24,164.21,13.46442548]
[1754487236815,13.464425,164.27,164.23,12.56442548]
[1754487237028,44.36,164.25,164.24,0.7]
[1754487237718,56.92442548,164.25,164.21,0.9]
[1754487238135,44.36,164.25,164.21,0.9]
[1754487238336,44.36,164.25,164.22,0.7]
[1754487238531,44.36,164.25,164.23,0.7]
[1754487239041,44.36,164.25,164.24,0.7]
[1754487239257,56.92442548,164.25,164.21,0.2]
[1754487239413,12.56442548,164.24,164.21,0.2]
[1754487239607,44.38,164.23,164.21,0.2]
[1754487239813,56.94442548,164.23,164.21,0.2]
[1754487240112,44.38,164.23,164.21,0.2]
[1754487240315,38.56442548,164.25,164.21,0.2]
[1754487240613,10.71219882,164.32,164.21,0.2]
[1754487240614,0.69,164.33,164.24,12.56442548]
[1754487240836,15.13621557,164.36,164.29,12.56442548]
[1754487240837,44.4,164.32,164.29,12.56442548]
[1754487241043,57.024426,164.32,164.3,0.7]
[1754487241210,57.024426,164.32,164.31,13.26442548]
[1754487241211,44.4,164.32,164.31,13.26442548]
[1754487242020,44.4,164.32,164.31,0.7]
[1754487242335,44.4,164.32,164.31,13.26442548]
[1754487242543,44.4,164.32,164.31,12.56442548]
[1754487242724,44.4,164.32,164.26,77.20621557]
[1754487242725,44.4,164.32,164.3,12.56442548]
[1754487242904,0.72,164.36,164.26,15.10621557]
[1754487243106,44.42,164.35,164.31,12.56442548]
[1754487243310,44.42,164.35,164.32,0.72]
[1754487243714,56.98442548,164.35,164.3,12.56442548]
[1754487243914,56.98442548,164.35,164.31,0.72]
[1754487244543,12.56442548,164.33,164.28,13.28442548]
[1754487244732,56.96442548,164.32,164.27,74.66442548]
[1754487244937,12.56442548,164.31,164.27,13.28442548]
[1754487245141,44.4,164.3,164.27,13.28442548]
[1754487245314,44.4,164.3,164.28,12.56442548]
[1754487245512,44.4,164.3,164.28,13.28442548]
[1754487245939,44.4,164.3,164.29,13.28442548]
[1754487246248,44.4,164.3,164.29,0.72]
[1754487246745,44.4,164.3,164.29,13.28442548]
[1754487246945,44.4,164.3,164.29,0.72]
[1754487247126,26.03,164.36,164.29,13.28442548]
[1754487247332,44.38,164.35,164.31,12.56442548]
[1754487247643,0.03,164.36,164.34,12.56442548]
[1754487247949,44.37,164.36,164.34,13.28442548]
[1754487248248,44.37,164.36,164.33,12.56442548]
[1754487248436,44.37,164.36,164.34,0.72]
[1754487248628,44.37,164.36,164.35,0.72]
[1754487248834,44.37,164.36,164.33,12.56442548]
[1754487249041,12.56442548,164.35,164.3,12.56442548]
[1754487249238,12.56442548,164.35,164.3,13.28442548]
[1754487249639,44.37,164.36,164.32,12.56442548]
[1754487249855,44.37,164.36,164.34,12.56442548]
[1754487250166,0.03,164.36,164.35,13.28442548]
[1754487250329,0.03,164.36,164.35,28.67496419]
[1754487250526,0.03,164.38,164.36,15.10621557]
[1754487250721,0.03,164.38,164.37,27.67064105]
[1754487250944,0.03,164.38,164.37,28.67496419]
[1754487251537,0.03,164.38,164.37,28.39064105]
[1754487251853,0.03,164.38,164.37,13.28442548]
[1754487253566,0.03,164.38,164.37,12.56442548]
[1754487253947,0.03,164.38,164.37,13.28442548]
[1754487254662,0.03,164.38,164.37,9.01806038]
[1754487257875,0.03,164.38,164.37,86.50859909]
[1754487258257,0.03,164.39,164.38,15.39053871]
[1754487258465,18.282093,164.45,164.38,24.40859909]
[1754487258780,0.65,164.46,164.41,8.29806038]
[1754487258955,8.94806038,164.44,164.39,23.40427595]
[1754487259148,8.94806038,164.44,164.4,8.29806038]
[1754487259149,0.65,164.44,164.4,8.29806038]
[1754487259458,0.65,164.43,164.39,8.29806038]
[1754487259656,0.65,164.42,164.37,8.29806038]
[1754487259856,8.94806038,164.41,164.34,15.10621557]
[1754487260075,8.29806038,164.4,164.35,8.29806038]
[1754487260244,0.65,164.39,164.35,8.29806038]
[1754487260672,8.29806038,164.41,164.36,8.29806038]
[1754487260845,8.94806038,164.4,164.34,15.10621557]
[1754487261052,8.94806038,164.4,164.36,8.29806038]
[1754487261447,8.29806038,164.41,164.36,9.01806038]
[1754487261651,44.36,164.42,164.38,8.29806038]
[1754487261883,53.30806038,164.42,164.37,8.29806038]
[1754487262061,8.94806038,164.41,164.36,8.29806038]
[1754487262263,8.94806038,164.41,164.36,9.01806038]
[1754487262459,70.99,164.44,164.4,8.29806038]
[1754487262659,70.99,164.44,164.37,0.72]
[1754487262875,70.99,164.44,164.4,8.29806038]
[1754487263395,44.34,164.44,164.42,8.29806038]
[1754487263602,44.34,164.44,164.43,8.29806038]
[1754487263753,44.34,164.44,164.38,0.28432314]
[1754487263754,44.34,164.44,164.42,8.29806038]
[1754487264589,0.65,164.43,164.39,8.29806038]
[1754487264880,8.29806038,164.41,164.38,6.08346514]
[1754487265179,0.65,164.4,164.38,6.08346514]
[1754487265685,8.29806038,164.41,164.38,6.08346514]
[1754487265985,8.29806038,164.4,164.38,6.08346514]
[1754487266166,0.65,164.4,164.38,6.08346514]
[1754487266366,8.94806038,164.4,164.38,6.08346514]
[1754487267002,0.65,164.43,164.39,8.29806038]
[1754487267198,52.63806038,164.44,164.4,0.72]
[1754487267404,53.28806038,164.44,164.39,8.29806038]
[1754487267977,8.94806038,164.43,164.39,8.29806038]
[1754487268402,52.63806038,164.44,164.39,8.29806038]
[1754487268601,44.34,164.44,164.4,9.01806038]
[1754487268787,44.34,164.44,164.42,6.08198515]
[1754487268976,44.34,164.44,164.43,8.29806038]
[1754487269181,44.34,164.44,164.42,6.08198515]
[1754487269377,44.34,164.44,164.43,8.29806038]
[1754487269590,44.93,164.47,164.43,8.29806038]
[1754487270196,44.28,164.47,164.42,21.28694804]
[1754487270391,44.93,164.47,164.43,8.29806038]
[1754487271088,44.28,164.47,164.44,6.08124543]
[1754487271288,0.65,164.46,164.44,6.08124543]
[1754487271601,8.94806038,164.45,164.41,8.29806038]
[1754487271901,0.65,164.44,164.41,6.08235508]
[1754487272314,0.65,164.43,164.41,6.08235508]
[1754487272483,0.65,164.42,164.41,6.08235508]
[1754487272682,0.65,164.42,164.36,77.30970804]
[1754487272683,8.94806038,164.42,164.39,6.08309507]
[1754487272995,44.24,164.43,164.38,29.59018837]
[1754487273206,44.24,164.43,164.4,8.29806038]
[1754487273386,44.91,164.43,164.39,8.29806038]
[1754487273902,44.24,164.43,164.39,0.67]
[1754487274219,44.24,164.43,164.4,8.96806038]
[1754487274425,44.24,164.43,164.38,21.29212799]
[1754487274426,23.50479138,164.48,164.42,8.29806038]
[1754487274632,44.24,164.45,164.43,8.29806038]
[1754487275136,0.03,164.52,164.48,15.10621557]
[1754487275289,0.03,164.52,164.51,8.29806038]
[1754487275494,0.03,164.52,164.48,15.10621557]
[1754487275495,0.03,164.52,164.5,8.29806038]
[1754487275934,0.03,164.52,164.49,8.29806038]
[1754487276303,0.03,164.52,164.5,8.29806038]
[1754487276523,0.03,164.52,164.49,8.29806038]
[1754487277006,0.03,164.52,164.5,8.29806038]
[1754487277328,0.67,164.51,164.48,6.07976653]
[1754487277621,0.67,164.5,164.48,6.07976653]
[1754487277821,45.08,164.52,164.48,14.37782691]
[1754487278123,0.03,164.52,164.51,8.29806038]
[1754487278512,0.03,164.52,164.51,24.07427595]
[1754487279422,0.03,164.52,164.51,6.74865783]
[1754487279642,0.03,164.52,164.51,14.37671821]
[1754487279840,0.03,164.52,164.51,6.07865783]
[1754487280699,0.03,164.52,164.51,14.37671821]
[1754487281007,1e-08,164.54,164.52,15.10621557]
[1754487281211,1e-08,164.54,164.53,29.48219487]
[1754487281433,1e-08,164.54,164.53,30.15219487]
[1754487282338,1e-08,164.55,164.54,15.10621557]
[1754487282513,8.14562412,164.62,164.54,50.35859909]
[1754487282714,18.363172,164.64,164.61,8.29806038]
[1754487282932,0.1,164.64,164.63,8.29806038]
[1754487283333,0.1,164.64,164.63,14.37228743]
[1754487283541,0.1,164.64,164.63,6.07422705]
[1754487283725,0.77,164.64,164.62,6.07453989]
[1754487283926,0.67,164.63,164.6,8.29806038]
[1754487284442,0.1,164.64,164.61,8.29806038]
[1754487285148,0.1,164.64,164.62,8.29806038]
[1754487285347,0.1,164.64,164.63,14.37228743]
[1754487285553,0.1,164.64,164.63,6.07422705]
[1754487286124,0.1,164.64,164.63,29.478503]
[1754487286345,0.1,164.64,164.63,30.148503]
[1754487286825,0.1,164.64,164.63,6.07422705]
[1754487287035,0.1,164.64,164.63,14.37228743]
[1754487287433,0.1,164.64,164.62,14.37265641]
[1754487287746,0.1,164.64,164.62,6.07459603]
[1754487287965,0.1,164.64,164.63,8.29806038]
[1754487288330,1e-08,164.64,164.63,8.96806038]
[1754487288525,1e-08,164.64,164.63,24.07427595]
[1754487289540,1e-08,164.64,164.63,6.07422705]
[1754487289743,1e-08,164.64,164.63,14.37228743]
[1754487290861,1e-08,164.64,164.63,30.148503]
[1754487291672,1e-08,164.64,164.63,74.508503]
[1754487291962,1e-08,164.64,164.63,100.79282614]
[1754487293931,1e-08,164.68,164.64,15.39053871]
[1754487294158,1e-08,164.68,164.67,23.40427595]
[1754487294456,1e-08,164.68,164.63,29.55785506]
[1754487294457,0.67,164.67,164.63,29.55785506]
[1754487294653,8.96806038,164.66,164.63,6.07422705]
[1754487294870,0.67,164.65,164.63,6.07422705]
[1754487295042,0.67,164.64,164.62,6.07446619]
[1754487295236,8.29806038,164.66,164.62,6.07446619]
[1754487295465,0.67,164.65,164.62,6.07446619]
[1754487296070,34.29806038,164.67,164.62,14.37252657]
[1754487296251,8.96806038,164.66,164.62,6.07446619]
[1754487296655,0.67000001,164.68,164.63,8.29806038]
[1754487296843,8.29806038,164.67,164.63,8.29806038]
[1754487297086,0.67,164.67,164.62,29.55901666]
[1754487297281,1e-08,164.68,164.65,8.29806038]
[1754487297667,1e-08,164.68,164.67,8.29806038]
[1754487297995,1e-08,164.68,164.67,29.47702751]
[1754487298168,1e-08,164.68,164.67,30.14702751]
[1754487298682,1e-08,164.68,164.67,29.47702751]
[1754487298899,1e-08,164.68,164.67,14.37081194]
[1754487299461,0.67000001,164.68,164.64,6.07385811]
[1754487299680,8.29806039,164.68,164.64,6.07385811]
[1754487299886,8.96806039,164.68,164.64,14.37191849]
[1754487300070,1e-08,164.68,164.65,23.40427595]
[1754487300263,0.67,164.67,164.63,8.29806038]
[1754487300467,8.29806038,164.64,164.62,0.06]
[1754487300668,26.0,164.6,164.54,6.07754953]
[1754487300978,8.29806038,164.57,164.54,6.07754953]
[1754487301182,0.67,164.59,164.54,6.07754953]
[1754487301390,8.29806038,164.57,164.54,6.07754953]
[1754487301693,8.29806038,164.59,164.54,21.27142336]
[1754487301992,44.38,164.66,164.49,6.07939692]
[1754487301993,8.29806038,164.55,164.49,6.07939692]
[1754487302174,8.29806038,164.53,164.49,21.27788922]
[1754487302497,0.67,164.55,164.51,8.29806038]
[1754487302660,26.67,164.62,164.54,27.60301047]
[1754487302865,26.67,164.62,164.56,12.4967949]
[1754487303066,12.4967949,164.6,164.56,12.4967949]
[1754487303260,12.4967949,164.61,164.57,12.4967949]
[1754487303488,13.1567949,164.61,164.56,12.4967949]
[1754487303866,12.4967949,164.63,164.58,12.4967949]
[1754487304067,0.66,164.64,164.54,15.10621557]
[1754487304068,12.4967949,164.6,164.55,18.57397508]
[1754487304274,0.66,164.59,164.56,12.4967949]
[1754487304582,0.66,164.58,164.55,18.57397508]
[1754487304782,26.0,164.61,164.57,12.4967949]
[1754487304982,0.66,164.6,164.55,6.07718018]
[1754487305297,26.0,164.63,164.55,6.07718018]
[1754487305298,13.1567949,164.59,164.55,6.07718018]
[1754487305491,12.4967949,164.6,164.55,19.23397508]
[1754487305708,13.1567949,164.6,164.55,18.57397508]
[1754487305888,26.0,164.63,164.51,85.54621557]
[1754487305889,12.4967949,164.56,164.53,6.07770576]
[1754487306201,12.4967949,164.54,164.46,0.66]
[1754487306370,12.4967949,164.49,164.46,6.08050589]
[1754487306572,12.4967949,164.48,164.46,6.08050589]
[1754487306791,26.0,164.55,164.44,6.08124543]
[1754487306792,12.4967949,164.47,164.44,6.08124543]
[1754487307182,13.1567949,164.48,164.44,6.08124543]
[1754487307379,12.4967949,164.47,164.44,6.08124543]
[1754487307582,12.4967949,164.46,164.44,6.08124543]
[1754487307789,0.66,164.47,164.44,6.08124543]
[1754487308093,12.4967949,164.47,164.44,6.08124543]
[1754487308601,12.4967949,164.48,164.44,6.08124543]
[1754487309097,12.4967949,164.49,164.45,13.1567949]
[1754487309306,12.4967949,164.49,164.44,21.28435902]
[1754487309307,12.4967949,164.49,164.44,33.78115392]
[1754487309594,0.66,164.48,164.44,6.08124543]
[1754487309789,12.4967949,164.49,164.45,12.4967949]
[1754487309988,13.1567949,164.51,164.46,18.57730079]
[1754487310300,12.4967949,164.51,164.46,19.23730079]
[1754487310602,0.66,164.53,164.47,27.60301047]
[1754487310776,12.4967949,164.54,164.49,12.4967949]
[1754487310978,12.4967949,164.53,164.47,15.76621557]
[1754487311175,12.4967949,164.53,164.48,12.4967949]
[1754487311572,0.66,164.54,164.47,15.10621557]
[1754487311798,12.4967949,164.56,164.51,12.4967949]
[1754487311974,12.4967949,164.56,164.46,65.74177063]
[1754487311975,12.4967949,164.52,164.46,56.9567949]
[1754487312188,12.4967949,164.5,164.46,21.18672146]
[1754487312407,12.4967949,164.51,164.46,34.34351636]
[1754487312618,13.1567949,164.52,164.47,12.4967949]
[1754487313536,12.4967949,164.52,164.46,21.18672146]
[1754487313824,12.4967949,164.49,164.46,6.08050589]
[1754487314179,0.66,164.51,164.46,18.57730079]
[1754487314402,0.66,164.51,164.47,12.4967949]
[1754487314710,39.1567949,164.53,164.48,12.4967949]
[1754487315412,12.4967949,164.51,164.46,18.57730079]
[1754487315592,0.66,164.5,164.46,18.57730079]
[1754487316195,12.4967949,164.5,164.45,6.08081927]
[1754487316497,26.0,164.53,164.45,6.08081927]
[1754487316498,13.1567949,164.49,164.45,6.08081927]
[1754487316902,12.4967949,164.48,164.44,6.08117392]
[1754487317105,13.1567949,164.47,164.43,44.44]
[1754487317614,12.4967949,164.44,164.4,0.66]
[1754487317791,12.4967949,164.44,164.4,13.1567949]
[1754487317996,12.4967949,164.44,164.41,6.08223761]
[1754487318196,13.1567949,164.46,164.41,19.23903251]
[1754487319016,26.0,164.5,164.42,13.1567949]
[1754487319017,12.4967949,164.47,164.42,13.1567949]
[1754487319207,12.4967949,164.46,164.42,0.66]
[1754487320316,12.4967949,164.46,164.42,6.08188143]
[1754487320532,13.1567949,164.46,164.42,6.08188143]
[1754487320695,12.4967949,164.46,164.42,6.08188143]
[1754487320891,13.1567949,164.48,164.44,12.4967949]
[1754487321120,12.4967949,164.48,164.44,12.4967949]
[1754487321627,0.66,164.5,164.44,0.66]
[1754487321793,0.66,164.5,164.43,15.10621557]
[1754487321794,12.4967949,164.45,164.41,6.0822561]
[1754487322141,13.1567949,164.45,164.42,0.06]
[1754487322341,13.1567949,164.44,164.42,0.06]
[1754487322546,0.66,164.47,164.42,0.06]
[1754487322836,6.08000588,164.48,164.42,0.06]
[1754487322837,13.1567949,164.45,164.42,0.06]
[1754487323042,26.0,164.47,164.42,12.5567949]
[1754487323227,26.0,164.47,164.43,0.66]
[1754487323429,13.1567949,164.51,164.46,12.4967949]
[1754487323617,12.4967949,164.48,164.42,0.06]
[1754487323814,12.4967949,164.48,164.43,12.4967949]
[1754487324020,13.1567949,164.48,164.43,13.1567949]
[1754487324241,0.66,164.48,164.44,18.57804033]
[1754487324451,12.4967949,164.46,164.42,6.1417365]
[1754487324666,8.95737069,164.45,164.42,0.06]
[1754487324827,8.95737069,164.45,164.42,6.14198321]
[1754487325154,8.95737069,164.45,164.42,0.06]
[1754487325444,0.66,164.44,164.42,0.06]
[1754487325618,8.95737069,164.44,164.42,0.06]
[1754487325817,0.66,164.43,164.42,0.06]
[1754487326040,6.07981317,164.48,164.42,0.06]
[1754487326041,8.29737069,164.45,164.42,0.06]
[1754487326246,34.95737069,164.46,164.42,0.06]
[1754487326450,8.29737069,164.44,164.42,0.06]
[1754487326625,8.29737069,164.43,164.42,0.06]
[1754487326822,8.95737069,164.43,164.42,0.06]
[1754487327730,34.95737069,164.43,164.42,0.06]
[1754487327960,8.95737069,164.43,164.42,0.06]
[1754487328351,30.24302415,164.43,164.37,0.06]
[1754487328543,26.0,164.39,164.37,0.06]
[1754487328752,34.29737069,164.38,164.37,0.06]
[1754487328947,26.0,164.38,164.37,0.06]
[1754487329143,52.75737069,164.39,164.37,0.06]
[1754487329144,44.46,164.39,164.37,0.06]
[1754487329867,8.29737069,164.41,164.37,0.06]
[1754487330065,0.66,164.43,164.39,8.29737069]
[1754487330631,8.95737069,164.42,164.37,14.44113875]
[1754487331183,0.66,164.41,164.37,0.06]
[1754487331335,8.95737069,164.4,164.37,0.06]
[1754487331532,0.66,164.4,164.37,0.06]
[1754487331734,8.29737069,164.41,164.37,0.06]
[1754487332062,26.0,164.43,164.4,8.29737069]
[1754487332355,34.29737069,164.43,164.38,15.0406624]
[1754487332539,8.29737069,164.41,164.37,6.14375448]
[1754487332864,8.95737069,164.41,164.37,6.14375448]
[1754487333071,8.95737069,164.41,164.37,0.06]
[1754487333253,8.96737069,164.4,164.37,0.06]
[1754487333653,8.29737069,164.4,164.37,0.06]
[1754487333969,26.0,164.43,164.39,8.29737069]
[1754487334179,8.957371,164.44,164.42,8.29737069]
[1754487334339,33.47752423,164.52,164.4,0.66]
[1754487334340,59.5255261,164.53,164.44,6.08124543]
[1754487334657,25.19758272,164.5,164.46,8.29737069]
[1754487334847,0.67,164.52,164.46,8.29737069]
[1754487335053,8.29737069,164.51,164.46,8.29737069]
[1754487335253,8.29737069,164.48,164.44,6.08124543]
[1754487335573,8.29737069,164.48,164.43,14.37885293]
[1754487335574,8.96737069,164.48,164.43,14.37885293]
[1754487335750,8.96737069,164.47,164.42,14.37928202]
[1754487335946,8.96737069,164.47,164.42,6.08191133]
[1754487336255,8.96737069,164.47,164.42,14.37928202]
[1754487336460,8.29737069,164.47,164.42,8.95737069]
[1754487336662,8.96737069,164.49,164.44,8.29737069]
[1754487336856,8.96737069,164.49,164.44,8.95737069]
[1754487337049,8.29737069,164.47,164.42,8.29737069]
[1754487337250,0.67,164.48,164.4,14.37979804]
[1754487337251,8.29737069,164.45,164.4,14.37979804]
[1754487337450,8.29737069,164.44,164.4,6.08242735]
[1754487337648,8.29737069,164.44,164.4,14.37979804]
[1754487337858,34.29737069,164.45,164.4,15.03979804]
[1754487338059,34.96737069,164.45,164.4,15.03979804]
[1754487338274,34.96737069,164.45,164.41,8.29737069]
[1754487338444,26.0,164.45,164.41,15.03955881]
[1754487338649,34.29737069,164.45,164.41,15.03955881]
[1754487338956,52.77737069,164.48,164.43,8.29737069]
[1754487339150,53.44737069,164.48,164.43,8.95737069]
[1754487339683,8.96737069,164.47,164.42,8.29737069]
[1754487339856,0.67,164.46,164.42,8.29737069]
[1754487340040,8.29737069,164.44,164.4,8.29737069]
[1754487340381,8.96737069,164.44,164.39,14.38010601]
[1754487340757,26.0,164.45,164.4,8.95737069]
[1754487341072,34.29737069,164.45,164.4,8.95737069]
[1754487341257,34.96737069,164.45,164.4,8.95737069]
[1754487341447,8.96737069,164.44,164.4,8.29737069]
[1754487341848,8.96737069,164.43,164.38,14.38081066]
[1754487342369,8.96737069,164.43,164.38,15.04081066]
[1754487342741,8.29737069,164.44,164.39,8.95737069]
[1754487343060,26.0,164.45,164.4,8.95737069]
[1754487343371,26.0,164.45,164.42,8.29737069]
[1754487343574,53.44737069,164.48,164.43,8.95737069]
[1754487343872,8.96737069,164.53,164.47,8.29737069]
[1754487344169,8.29737069,164.51,164.46,8.29737069]
[1754487344373,0.67,164.5,164.44,8.29737069]
[1754487344553,8.29737069,164.49,164.45,6.08087564]
[1754487344756,8.29737069,164.49,164.44,8.29737069]
[1754487344757,0.67,164.48,164.44,14.37849554]
[1754487345892,0.67,164.47,164.43,6.08151784]
[1754487346073,0.67,164.46,164.42,14.37926851]
[1754487346254,8.29737069,164.47,164.42,15.03926851]
[1754487346774,8.29737069,164.47,164.42,14.37926851]
[1754487347079,8.29737069,164.44,164.39,8.95737069]
[1754487347288,8.29737069,164.44,164.4,6.74266886]
[1754487347653,8.29737069,164.45,164.4,14.38003955]
[1754487347854,8.29737069,164.45,164.41,0.66]
[1754487348254,8.29737069,164.45,164.41,6.74235049]
[1754487348572,8.29737069,164.44,164.4,6.08265723]
[1754487348769,8.96737069,164.43,164.38,8.29737069]
[1754487349094,8.96737069,164.42,164.37,23.46358626]
[1754487349296,8.29737069,164.41,164.37,6.14371761]
[1754487349585,8.29737069,164.42,164.37,15.1010883]
[1754487349795,8.29737069,164.43,164.38,0.66]
[1754487350081,26.0,164.45,164.41,8.29737069]
[1754487350463,8.96737069,164.44,164.39,8.95737069]
[1754487350666,8.29737069,164.41,164.37,0.06]
[1754487350979,8.29737069,164.4,164.37,0.06]